bitfinex-derivatives/quotes_SOLF0:USTF0_20241010
["timestamp","ask_amount","ask_price","bid_price","bid_amount"]
[1728530399085,0.12502,139.97,139.96,15.080788]
[1728530399981,0.12502,139.97,139.96,11.504988]
[1728530400582,0.12502,139.97,139.96,6.08231056]
[1728530400782,0.12502,139.97,139.96,11.50306817]
[1728530400977,3.70052,139.97,139.96,11.50306817]
[1728530401584,0.12502,139.97,139.96,11.50306817]
[1728530404392,10.03502,139.97,139.96,11.50306817]
[1728530404689,10.03502,139.97,139.96,11.50498665]
[1728530405488,13.61052,139.97,139.96,5.42075761]
[1728530409094,0.12502,139.97,139.96,5.42075761]
[1728530409490,10.03502,139.97,139.96,5.42075761]
[1728530410396,13.61052,139.97,139.96,5.42075761]
[1728530413391,13.61052,139.97,139.93,106.98019204]
[1728530413597,13.61052,139.97,139.96,5.42339599]
[1728530416805,13.61052,139.97,139.93,120.46669204]
[1728530416988,13.61052,139.97,139.94,11.50850332]
[1728530417194,13.61052,139.97,139.95,11.50850332]
[1728530417391,3.70052,139.97,139.96,5.42337306]
[1728530418198,0.12502,139.97,139.96,5.42337306]
[1728530418690,0.12502,139.97,139.96,11.50663802]
[1728530420099,0.12502,139.97,139.96,6.08326496]
[1728530420297,0.12502,139.97,139.96,11.50421456]
[1728530421904,0.12502,139.97,139.96,15.08001456]
[1728530422701,0.12502,139.97,139.96,24.99001456]
[1728530422897,5.04,140.0,139.96,21.41421456]
[1728530423201,5.04,140.0,139.97,11.50421456]
[1728530423502,5.04,140.0,139.98,6.08132595]
[1728530423804,14.95,140.0,139.99,5.41986763]
[1728530424605,5.04,140.0,139.99,5.41986763]
[1728530425304,8.6148,140.0,139.99,5.41986763]
[1728530426500,18.5248,140.0,139.99,5.41986763]
[1728530426713,14.95,140.0,139.95,9.91]
[1728530427004,3.5755,139.98,139.96,11.49687439]
[1728530427205,3.5755,139.98,139.97,11.49687439]
[1728530427995,13.4855,139.98,139.97,11.49687439]
[1728530428202,13.4855,139.98,139.97,5.4178262]
[1728530432006,3.5755,139.98,139.97,5.4178262]
[1728530432208,13.4855,139.98,139.97,5.4178262]
[1728530433304,3.5759,139.96,139.93,106.98019204]
[1728530433607,3.5759,139.96,139.94,11.50225376]
[1728530433800,3.5759,139.96,139.93,106.98019204]
[1728530434001,3.5759,139.96,139.94,6.08184947]
[1728530434206,3.5759,139.96,139.95,11.50225501]
[1728530436810,3.5759,139.96,139.93,116.89019204]
[1728530437008,3.5759,139.96,139.95,11.50887497]
[1728530440113,3.5759,139.96,139.93,116.89019204]
[1728530440315,3.5759,139.96,139.94,5.42571578]
[1728530440514,3.5756,139.97,139.95,11.51346622]
[1728530440712,3.5756,139.97,139.96,11.51346622]
[1728530443504,3.5756,139.97,139.94,9.91]
[1728530443703,3.5756,139.97,139.96,5.42212427]
[1728530443908,3.5756,139.97,139.96,11.50589249]
[1728530446818,3.5756,139.97,139.94,9.91]
[1728530447019,3.5756,139.97,139.95,11.50456201]
[1728530447214,3.5756,139.97,139.96,11.50456201]
[1728530453622,3.5756,139.97,139.94,9.91]
[1728530453819,3.5756,139.97,139.96,5.42037418]
[1728530454024,3.5756,139.97,139.96,11.5021785]
[1728530457125,3.5759,139.96,139.93,116.89019204]
[1728530457328,3.5759,139.96,139.94,11.50285672]
[1728530457533,3.5759,139.96,139.95,11.50285672]
[1728530459539,13.4859,139.96,139.95,11.50285672]
[1728530460734,9.91,139.96,139.93,106.98019204]
[1728530460939,3.5761,139.95,139.93,106.98019204]
[1728530461136,3.5761,139.95,139.94,11.50514806]
[1728530461631,3.5761,139.95,139.94,21.41514806]
[1728530462638,3.5761,139.95,139.94,15.33180379]
[1728530462940,3.5761,139.95,139.94,21.41477003]
[1728530464337,3.5761,139.95,139.94,11.50477003]
[1728530466242,3.5761,139.95,139.93,116.89019204]
[1728530466443,3.5761,139.95,139.94,11.50251291]
[1728530466838,3.5761,139.95,139.94,21.41251291]
[1728530469644,3.49006493,140.01,139.94,21.41251291]
[1728530469843,3.49006493,140.01,139.93,110.49485732]
[1728530469844,14.95,140.0,139.95,9.91]
[1728530470138,14.95,140.0,139.93,110.49485732]
[1728530470139,9.91,139.99,139.96,11.49251158]
[1728530470347,3.5753,139.98,139.97,11.49251158]
[1728530473442,3.5753,139.98,139.97,11.49283625]
[1728530473643,8.6153,139.98,139.97,11.49283625]
[1728530475442,8.6153,139.98,139.97,11.49274996]
[1728530476943,8.6153,139.98,139.97,11.49292459]
[1728530480341,3.5756,139.97,139.94,9.91]
[1728530480545,3.5756,139.97,139.95,6.07461635]
[1728530480749,3.5756,139.97,139.96,11.48850484]
[1728530483646,3.5756,139.97,139.94,9.91]
[1728530483848,3.5756,139.97,139.95,11.48734649]
[1728530484155,3.5756,139.97,139.96,11.48734649]
[1728530490459,3.5756,139.97,139.96,5.41332549]
[1728530490646,3.5756,139.97,139.96,11.4871337]
[1728530492748,5.04,139.99,139.96,21.3971337]
[1728530492952,9.91,140.01,139.97,11.4871337]
[1728530493254,5.04,140.0,139.98,11.4871337]
[1728530493452,8.6148,140.0,139.99,11.4871337]
[1728530493854,5.04,140.0,139.96,9.91]
[1728530494046,8.6148,140.0,139.99,11.48345866]
[1728530494252,5.04,140.0,139.99,11.48345866]
[1728530495460,8.6148,140.0,139.99,11.48345866]
[1728530497257,18.5248,140.0,139.99,6.07198973]
[1728530497458,18.5248,140.0,139.99,11.48206951]
[1728530498458,13.4848,140.0,139.99,11.48206951]
[1728530498761,18.5048,140.0,139.99,11.48206951]
[1728530500851,18.5048,140.0,139.99,6.07198973]
[1728530501065,18.5048,140.0,139.99,11.48063105]
[1728530503271,18.5048,140.0,139.99,5.40864132]
[1728530503571,18.5048,140.0,139.99,11.47660326]
[1728530504273,18.5048,140.0,139.99,5.40864132]
[1728530507568,3.5756,139.97,139.94,9.91]
[1728530507768,3.5756,139.97,139.95,6.06747009]
[1728530507976,3.5756,139.97,139.96,6.06747009]
[1728530508168,3.5756,139.97,139.96,11.47492033]
[1728530508963,13.4856,139.97,139.96,6.06747009]
[1728530509167,13.4856,139.97,139.96,11.47387974]
[1728530510069,13.4856,139.97,139.96,5.40640965]
[1728530510277,13.4856,139.97,139.96,11.47204849]
[1728530510871,13.4856,139.97,139.96,6.06563884]
[1728530511177,13.4856,139.97,139.96,11.47190085]
[1728530513277,8.5956,139.97,139.96,11.47190085]
[1728530514079,8.5956,139.97,139.94,9.91]
[1728530514379,8.5956,139.97,139.96,11.47291203]
[1728530517473,3.5758,139.96,139.93,116.89284954]
[1728530517676,3.5758,139.96,139.94,6.06745952]
[1728530517871,3.5758,139.96,139.95,11.47497001]
[1728530518979,5.02,139.97,139.95,21.38497001]
[1728530519175,84.4833,140.06,139.96,21.38497001]
[1728530519372,9.91,140.01,139.97,11.47497001]
[1728530519576,13.57256144,140.01,139.98,11.47320564]
[1728530519776,13.57256144,140.01,139.99,5.40574612]
[1728530519984,13.57256144,140.01,139.95,9.91]
[1728530520279,13.57256144,140.01,139.96,11.47124597]
[1728530520280,3.5752,139.99,139.96,11.47124597]
[1728530520578,3.5752,139.99,139.95,9.91]
[1728530520788,3.5752,139.99,139.97,11.47178894]
[1728530520984,3.5752,139.99,139.98,6.06581488]
[1728530521178,3.5752,139.99,139.98,11.47178894]
[1728530522985,3.5752,139.99,139.95,13.486]
[1728530523183,3.5752,139.99,139.98,11.47428804]
[1728530523386,5.02,140.02,139.98,11.47428804]
[1728530523591,13.4847,140.01,139.99,11.47391355]
[1728530523788,13.4847,140.01,140.0,5.40714552]
[1728530526297,9.91,140.01,139.96,13.4857]
[1728530526499,3.5748,140.0,139.97,11.46825578]
[1728530526697,3.5748,140.0,139.98,11.46825578]
[1728530526996,3.5748,140.0,139.99,5.40429622]
[1728530528497,13.4848,140.0,139.99,5.40429622]
[1728530530002,3.5755,139.98,139.95,9.91]
[1728530530303,3.5755,139.98,139.96,11.4688332]
[1728530530497,3.5755,139.98,139.97,11.4688332]
[1728530533305,3.5755,139.98,139.93,120.46934954]
[1728530533495,3.5755,139.98,139.97,11.47403184]
[1728530540014,3.5755,139.98,139.97,6.06698002]
[1728530540215,3.5755,139.98,139.97,11.47463211]
[1728530543314,3.5755,139.98,139.97,5.40765209]
[1728530543514,3.5755,139.98,139.97,11.47649946]
[1728530546619,3.5755,139.98,139.97,5.40765209]
[1728530547019,3.5755,139.98,139.97,11.48263861]
[1728530550218,3.5755,139.98,139.97,5.41796988]
[1728530550523,3.5755,139.98,139.97,11.49726245]
[1728530553528,5.02,139.99,139.97,11.49726245]
[1728530553828,3.5748,140.0,139.98,11.4970493]
[1728530554016,3.5748,140.0,139.99,11.4970493]
[1728530554216,3.5748,140.0,139.99,11.49635967]
[1728530555425,13.4848,140.0,139.99,11.49635967]
[1728530557326,3.5751,139.99,139.94,13.4862]
[1728530557520,3.5751,139.99,139.95,11.49695059]
[1728530557724,3.5751,139.99,139.96,11.49695059]
[1728530557925,3.5751,139.99,139.97,11.49695059]
[1728530558127,3.5751,139.99,139.98,11.49695059]
[1728530560634,3.5751,139.99,139.98,5.41781639]
[1728530560829,3.5751,139.99,139.98,11.49700328]
[1728530562229,13.4849,140.0,139.98,11.49700328]
[1728530562426,13.4849,140.0,139.99,11.49700328]
[1728530564033,13.4849,140.0,139.96,1.3618]
[1728530564240,13.4849,140.0,139.97,11.49663211]
[1728530564537,3.5749,140.0,139.98,11.49663211]
[1728530564731,3.5749,140.0,139.99,11.49663211]
[1728530570552,3.5749,140.0,139.99,5.41766815]
[1728530570846,3.5749,140.0,139.99,11.49546535]
[1728530571546,5.02,140.01,139.99,11.49546535]
[1728530571853,8.5947,140.01,140.0,11.49546535]
[1728530572234,8.5947,140.01,140.0,11.49452968]
[1728530574046,8.5947,140.01,140.0,11.49114587]
[1728530577165,8.5947,140.01,140.0,5.41505448]
[1728530577361,8.5947,140.01,140.0,6.07464075]
[1728530577539,8.5947,140.01,140.0,11.48839931]
[1728530577746,8.5947,140.01,140.0,11.48839933]
[1728530581552,18.5047,140.01,140.0,11.48839933]
[1728530582854,14.93,140.01,139.97,9.91]
[1728530583051,3.5749,140.0,139.96,2.7174]
[1728530583354,14.93,140.01,139.97,11.48851061]
[1728530583556,3.5749,140.0,139.98,11.48851061]
[1728530583746,3.5749,140.0,139.99,11.48851061]
[1728530586144,3.5749,140.0,139.96,2.7174]
[1728530586354,3.5749,140.0,139.97,11.48990733]
[1728530586550,3.5749,140.0,139.98,11.48990733]
[1728530586849,3.5749,140.0,139.99,11.48990733]
[1728530589551,3.5749,140.0,139.97,9.91]
[1728530589858,3.5749,140.0,139.98,11.48840287]
[1728530590054,3.5749,140.0,139.97,9.91]
[1728530590259,3.5749,140.0,139.98,11.48840285]
[1728530590554,3.5749,140.0,139.99,11.48840285]
[1728530592961,3.5749,140.0,139.99,6.07466728]
[1728530593258,3.5749,140.0,139.99,11.4858001]
[1728530596158,3.5749,140.0,139.99,6.07466728]
[1728530596356,3.5749,140.0,139.99,11.4856567]
[1728530598261,5.02,140.01,139.99,11.4856567]
[1728530598262,8.5947,140.01,139.99,11.4856567]
[1728530598468,5.02,140.01,140.0,11.4856567]
[1728530599467,8.5945,140.01,140.0,11.4856567]
[1728530602757,8.5945,140.01,140.0,6.07466728]
[1728530602959,3.5749,140.0,139.97,9.91]
[1728530603271,3.5749,140.0,139.98,6.06877345]
[1728530603472,3.5749,140.0,139.99,11.47730686]
[1728530604870,3.5749,140.0,139.99,6.06877345]
[1728530605072,3.5749,140.0,139.99,11.47812994]
[1728530606067,3.5749,140.0,139.97,120.44009111]
[1728530606261,3.5749,140.0,139.98,6.06999806]
[1728530606461,3.5749,140.0,139.98,11.47957593]
[1728530606663,3.5749,140.0,139.99,11.47955988]
[1728530609977,3.5749,140.0,139.99,11.47964434]
[1728530616384,3.5749,140.0,139.99,6.07008252]
[1728530616681,3.5749,140.0,139.99,11.48124941]
[1728530619687,3.5749,140.0,139.97,120.44009111]
[1728530619886,3.5749,140.0,139.98,11.48452556]
[1728530620089,3.5749,140.0,139.99,11.48452556]
[1728530620483,3.5749,140.0,139.99,5.41191024]
[1728530620684,3.5749,140.0,139.99,11.48479303]
[1728530623104,3.5749,140.0,139.97,120.44009111]
[1728530623305,3.5749,140.0,139.99,6.07397041]
[1728530623603,3.5749,140.0,139.99,11.48708833]
[1728530626609,5.02,140.01,139.99,11.48708833]
[1728530626803,0.12502,140.03,140.0,11.48708833]
[1728530626804,3.5744,140.02,140.0,11.48708833]
[1728530627010,8.5944,140.02,140.01,11.48708833]
[1728530627508,5.02,140.02,140.01,11.48708833]
[1728530628809,5.02,140.02,140.01,6.07708249]
[1728530629008,5.02,140.02,140.01,11.4929735]
[1728530630110,5.02,140.02,139.98,13.4852]
[1728530630308,8.5943,140.02,139.99,11.49466483]
[1728530630509,8.5943,140.02,140.0,11.49466483]
[1728530630705,8.5943,140.02,140.01,11.49466483]
[1728530631111,18.5043,140.02,140.01,11.49466483]
[1728530633512,18.5043,140.02,140.01,6.07797871]
[1728530633713,18.5043,140.02,140.01,11.49580695]
[1728530637014,18.5043,140.02,139.97,110.53009111]
[1728530637217,18.5043,140.02,139.98,11.49997674]
[1728530637423,18.5043,140.02,139.99,11.49997674]
[1728530637616,18.5043,140.02,140.0,11.49997674]
[1728530637822,18.5043,140.02,140.01,11.49997674]
[1728530640722,18.5043,140.02,140.01,11.50010362]
[1728530646327,3.5745,140.01,139.97,120.44009111]
[1728530646527,8.5945,140.01,139.98,6.08186204]
[1728530646729,8.5945,140.01,139.99,11.50200786]
[1728530646931,8.5945,140.01,140.0,11.50200786]
[1728530648531,5.02,140.01,140.0,11.50200786]
[1728530649637,5.02,140.01,139.97,120.44009111]
[1728530649835,5.02,140.01,140.0,5.41953614]
[1728530650035,5.02,140.01,140.0,11.50075292]
[1728530650432,8.5945,140.01,140.0,11.50075292]
[1728530652032,18.5045,140.01,140.0,11.50075292]
[1728530652936,18.5045,140.01,139.97,120.44009111]
[1728530653241,8.5946,140.01,139.98,21.41365286]
[1728530653431,8.5946,140.01,139.98,9.91]
[1728530653634,8.5946,140.01,139.99,11.50165477]
[1728530653935,8.5946,140.01,140.0,11.50165477]
[1728530658034,5.02,140.01,140.0,11.50165477]
[1728530658837,18.5045,140.01,140.0,11.50165477]
[1728530659041,22.06627249,140.01,140.0,11.50165477]
[1728530663136,12.15627249,140.01,140.0,11.50294057]
[1728530663544,22.06627249,140.01,140.0,11.50294057]
[1728530666256,18.49177249,140.01,139.97,106.95459111]
[1728530666551,3.5749,140.0,139.98,5.41856626]
[1728530666748,3.5749,140.0,139.99,11.49857444]
[1728530668550,18.5048,140.01,139.99,11.49857444]
[1728530668739,18.5048,140.01,140.0,11.49857444]
[1728530669641,18.5048,140.01,139.97,106.95459111]
[1728530669948,18.5048,140.01,139.98,5.41785573]
[1728530670148,8.5948,140.01,139.98,11.49699206]
[1728530670337,8.5948,140.01,139.99,11.49699206]
[1728530670541,8.5948,140.01,140.0,11.49699206]
[1728530671244,9.91,140.02,140.0,11.49699206]
[1728530671452,3.56300794,140.01,139.98,13.4852]
[1728530672252,3.56300794,140.01,139.98,9.91]
[1728530673754,7.13760794,140.01,139.98,9.91]
[1728530676659,7.13760794,140.01,139.98,13.4852]
[1728530683554,7.13760794,140.01,139.99,5.34896412]
[1728530683862,7.13760794,140.01,140.0,5.34896412]
[1728530686269,7.13760794,140.01,139.98,13.4852]
[1728530686467,7.13760794,140.01,140.0,5.34907396]
[1728530689064,7.13760794,140.01,140.0,5.34857106]
[1728530689360,3.56300794,140.01,140.0,5.34857106]
[1728530690071,3.56300794,140.01,140.0,5.34865536]
[1728530697369,20.67934508,140.01,140.0,5.34865536]
[1728530697570,17.04750794,140.01,140.0,5.34865536]
[1728530698174,20.6002392,140.01,140.0,5.34865536]
[1728530700175,3.575,140.0,139.97,106.95459111]
[1728530700372,9.91,139.99,139.98,5.35230356]
[1728530701470,13.485,139.99,139.98,5.35230356]
[1728530702482,13.485,139.99,139.98,5.35211332]
[1728530705775,13.485,139.99,139.97,106.95459111]
[1728530705982,13.485,139.99,139.98,5.35172099]
[1728530710383,13.485,139.99,139.97,106.95459111]
[1728530710584,13.485,139.99,139.98,5.3504685]
[1728530713091,3.575,139.99,139.98,5.3504685]
[1728530713285,13.485,139.99,139.98,5.3504685]
[1728530715795,13.485,139.99,139.97,106.95459111]
[1728530715989,13.485,139.99,139.98,5.3490129]
[1728530716690,13.485,139.99,139.98,5.34878806]
[1728530719294,3.5754,139.98,139.95,9.91]
[1728530719593,5.0,139.98,139.96,15.25870562]
[1728530719795,5.0,139.98,139.97,5.34870562]
[1728530722496,5.0,139.98,139.97,5.34537202]
[1728530725394,0.12502,140.03,139.97,15.25537202]
[1728530725597,5.12502,140.03,139.99,3.5748]
[1728530725798,5.12502,140.03,139.98,5.34537202]
[1728530725799,5.12502,140.03,140.0,5.34312545]
[1728530726009,3.5743,140.02,140.01,5.34312545]
[1728530726303,13.4843,140.02,140.01,5.34312545]
[1728530727505,3.5743,140.02,140.01,5.34312545]
[1728530729106,3.5743,140.02,139.98,116.85987903]
[1728530729301,3.5743,140.02,139.99,5.34403937]
[1728530729504,3.5743,140.02,140.0,5.34403937]
[1728530729704,3.5743,140.02,140.01,5.34403937]
[1728530731909,13.4843,140.02,140.01,5.34403937]
[1728530735115,3.5743,140.02,140.01,5.34403937]
[1728530735310,13.4843,140.02,140.01,5.34403937]
[1728530735507,3.5753,139.98,139.95,1.4002]
[1728530735709,8.55262751,139.99,139.95,11.3102]
[1728530736011,8.55262751,139.99,139.96,5.34785721]
[1728530736214,8.55262751,139.99,139.97,5.34790778]
[1728530736215,12.12772751,139.99,139.97,5.34790778]
[1728530736519,12.12772751,139.99,139.98,5.34790778]
[1728530738017,8.5751,139.99,139.98,5.34790778]
[1728530738213,12.18600512,139.99,139.98,5.34790778]
[1728530738413,5.0,139.99,139.98,15.25790778]
[1728530738910,5.0,139.99,139.98,9.91]
[1728530739111,5.0,139.99,139.98,15.25709917]
[1728530739820,5.0,140.01,139.98,18.83219917]
[1728530740022,5.0,140.01,140.0,9.91]
[1728530740216,5.0,140.01,140.0,15.25709917]
[1728530740514,0.12502,140.03,140.0,5.34709917]
[1728530740715,0.12502,140.03,140.01,5.34709917]
[1728530740716,5.0,140.02,140.01,5.34709917]
[1728530742419,8.5744,140.02,140.0,9.91]
[1728530742630,8.5744,140.02,140.01,5.34597238]
[1728530743119,5.0,140.02,140.01,5.34597238]
[1728530743514,0.12502,140.03,140.01,5.34597238]
[1728530743718,5.12502,140.03,140.02,5.34597238]
[1728530744329,8.69902,140.03,140.02,5.34597238]
[1728530745628,5.12502,140.03,140.02,5.34597238]
[1728530747032,8.69902,140.03,140.02,5.34597238]
[1728530753538,18.60902,140.03,140.02,5.34597238]
[1728530755941,15.03502,140.03,139.98,9.91]
[1728530756140,3.5743,140.02,139.98,9.91]
[1728530756340,15.03502,140.03,139.99,5.34435802]
[1728530756643,15.03502,140.03,140.0,5.34435802]
[1728530756837,18.60922,140.03,140.01,5.34435802]
[1728530757036,18.60922,140.03,140.02,5.34435802]
[1728530759340,18.60922,140.03,139.98,13.4851]
[1728530759643,18.60922,140.03,139.99,5.3436989]
[1728530759837,18.60922,140.03,140.0,5.3436989]
[1728530760037,3.5743,140.02,140.01,5.3436989]
[1728530761137,13.4843,140.02,140.01,5.3436989]
[1728530761747,3.5746,140.01,139.97,9.91]
[1728530761942,7.20286749,140.01,139.97,9.91]
[1728530762145,7.20286749,140.01,139.98,5.34518681]
[1728530762435,7.20286749,140.01,139.99,5.34518681]
[1728530762746,7.20286749,140.01,140.0,5.34518681]
[1728530763745,3.5746,140.01,140.0,5.34518681]
[1728530764338,7.17355249,140.01,140.0,5.34518681]
[1728530764639,3.5746,140.01,140.0,5.34518681]
[1728530765245,3.5746,140.01,139.98,9.91]
[1728530765246,7.10419749,140.01,139.98,9.91]
[1728530765443,7.10419749,140.01,140.0,5.34472893]
[1728530767747,3.5746,140.01,140.0,5.34472893]
[1728530768048,7.14209249,140.01,140.0,5.34472893]
[1728530768251,3.5746,140.01,140.0,5.34472893]
[1728530768747,3.5746,140.01,139.98,9.91]
[1728530769039,3.5746,140.01,139.99,5.34521109]
[1728530769244,3.5746,140.01,140.0,5.34521109]
[1728530772344,3.5746,140.01,139.98,9.91]
[1728530772744,3.5746,140.01,139.99,5.34444894]
[1728530772945,3.5746,140.01,140.0,5.34444894]
[1728530775948,8.5746,140.01,140.0,5.34444894]
[1728530776148,8.5746,140.01,139.98,9.91]
[1728530776450,8.5746,140.01,139.99,5.34467192]
[1728530776656,8.5746,140.01,140.0,5.34467192]
[1728530779652,8.5746,140.01,139.98,9.91]
[1728530779855,8.5746,140.01,140.0,5.3439938]
[1728530781147,5.0,140.01,140.0,5.3439938]
[1728530783253,5.0,140.01,139.98,13.4853]
[1728530783549,5.0,140.01,140.0,5.34571225]
[1728530785648,5.0,140.01,140.0,15.25571225]
[1728530786557,0.12502,140.03,140.0,18.83031225]
[1728530786755,0.12502,140.03,140.01,15.25571225]
[1728530786962,0.12502,140.03,140.02,5.34472072]
[1728530787149,0.12502,140.03,140.01,9.91]
[1728530787457,0.12502,140.03,140.02,5.34487784]
[1728530790450,0.12502,140.03,140.01,9.91]
[1728530790756,0.12502,140.03,140.02,5.34454956]
[1728530794260,0.12502,140.03,140.01,9.91]
[1728530794657,0.12502,140.03,140.02,5.34446802]
[1728530794860,0.12502,140.03,140.02,15.25446802]
[1728530795065,0.12502,140.03,140.02,18.82876802]
[1728530795964,0.12518,140.04,140.03,3.574]
[1728530796166,5.0,140.07,140.03,18.82846802]
[1728530796167,8.5731,140.07,140.03,18.82846802]
[1728530796366,8.5731,140.07,140.04,5.34446802]
[1728530796557,8.5731,140.07,140.05,5.34446802]
[1728530796761,8.5731,140.07,140.06,5.34446802]
[1728530797464,8.5731,140.07,140.03,13.484]
[1728530797969,8.5731,140.07,140.04,5.33919791]
[1728530798263,8.5731,140.07,140.05,5.33919791]
[1728530798465,8.5731,140.07,140.03,13.484]
[1728530798677,5.0,140.07,140.04,8.91197023]
[1728530798866,5.0,140.07,140.05,5.33827023]
[1728530799068,5.0,140.07,140.03,9.91]
[1728530799267,5.0,140.07,140.04,5.33816313]
[1728530799464,5.0,140.07,140.05,5.33816313]
[1728530799767,5.0,140.07,140.03,13.4838]
[1728530799963,5.0,140.07,140.04,5.3372526]
[1728530800165,5.0,140.07,140.05,5.3372526]
[1728530800367,5.0,140.07,140.03,13.4838]
[1728530800559,5.0,140.07,140.04,5.33635675]
[1728530800771,8.573,140.07,140.05,5.33635675]
[1728530801072,8.573,140.07,140.03,13.4838]
[1728530801271,8.573,140.07,140.04,5.33645178]
[1728530801567,3.573,140.07,140.03,13.4838]
[1728530801773,3.573,140.07,140.02,1.3743]
[1728530801774,22.16845917,140.09,140.05,9.91]
[1728530801973,18.59585917,140.09,140.04,3.5736]
[1728530802175,18.59585917,140.09,140.05,15.24534365]
[1728530802470,18.59585917,140.09,140.05,9.91]
[1728530803374,3.5728,140.08,140.05,9.91]
[1728530809984,8.5728,140.08,140.05,9.91]
[1728530815688,5.0,140.08,140.05,9.91]
[1728530815895,3.5732,140.07,140.03,1.4311]
[1728530816196,14.91,140.08,140.04,5.33187601]
[1728530816396,14.91,140.08,140.05,5.3315608]
[1728530816590,14.91,140.08,140.03,11.3411]
[1728530816790,3.573,140.07,140.04,5.3315608]
[1728530816991,3.573,140.07,140.05,5.3315608]
[1728530817191,3.573,140.07,140.03,11.3411]
[1728530817397,3.5733,140.06,140.04,5.33128057]
[1728530817697,3.5733,140.06,140.03,11.3411]
[1728530817894,3.5733,140.06,140.04,5.33134062]
[1728530818087,3.5733,140.06,140.03,11.3411]
[1728530818284,3.5733,140.06,140.04,5.33061004]
[1728530818510,3.5733,140.06,140.03,11.3411]
[1728530818685,3.5733,140.06,140.04,15.24055058]
[1728530818996,3.5733,140.06,140.04,9.91]
[1728530820597,14.91,140.08,140.03,11.3411]
[1728530820790,14.91,140.08,140.04,5.32994013]
[1728530821099,14.91,140.08,140.03,11.3411]
[1728530821490,3.5737,140.05,140.04,5.32984845]
[1728530823992,3.5737,140.05,140.03,9.91]
[1728530824197,3.5737,140.05,140.04,5.3293714]
[1728530827306,9.91,140.07,140.02,9.91]
[1728530827512,3.5738,140.04,140.02,9.91]
[1728530827807,3.5738,140.04,140.03,5.32908925]
[1728530829004,3.5738,140.04,140.03,15.23908925]
[1728530830910,3.5738,140.04,140.03,9.91]
[1728530831214,3.5738,140.04,140.03,15.23771873]
[1728530832109,9.91,140.07,140.03,5.32771873]
[1728530832310,3.5737,140.05,140.04,5.32771873]
[1728530834014,3.5737,140.05,140.03,9.91]
[1728530834312,3.5737,140.05,140.04,5.32828863]
[1728530835904,3.5737,140.05,140.03,9.91]
[1728530836105,3.5737,140.05,140.04,5.32780635]
[1728530837407,3.5737,140.05,140.03,9.91]
[1728530837603,3.5737,140.05,140.04,5.32800588]
[1728530841313,9.91,140.07,140.04,5.32800588]
[1728530841611,5.0,140.08,140.05,5.32800588]
[1728530841814,9.91,140.07,140.04,106.90705233]
[1728530842005,3.5732,140.06,140.05,5.33126717]
[1728530845711,3.5732,140.06,140.05,5.34048027]
[1728530847719,3.5732,140.06,140.02,9.91]
[1728530847922,3.5732,140.06,140.03,5.34142788]
[1728530848221,3.5732,140.06,140.04,5.34142788]
[1728530848423,3.5732,140.06,140.05,5.34142788]
[1728530850926,3.5732,140.06,140.02,9.91]
[1728530851423,3.5732,140.06,140.03,5.34245026]
[1728530851620,3.5732,140.06,140.04,5.34245026]
[1728530851926,3.5732,140.06,140.05,5.34245026]
[1728530854326,3.5732,140.06,140.03,9.91]
[1728530854522,3.5732,140.06,140.05,5.34610954]
[1728530856127,8.5732,140.06,140.05,5.34610954]
[1728530857526,8.5732,140.06,140.03,9.91]
[1728530857720,8.5732,140.06,140.05,5.34797716]
[1728530861031,8.5732,140.06,140.03,9.91]
[1728530861229,8.5732,140.06,140.05,5.35044947]
[1728530862443,8.5732,140.06,140.05,10.70197907]
[1728530863028,8.5732,140.06,140.05,5.3515296]
[1728530868833,5.0,140.06,140.05,5.3515296]
[1728530871538,5.0,140.06,140.05,5.35450674]
[1728530874542,8.5732,140.06,140.05,5.35450674]
[1728530878835,8.5732,140.06,140.03,3.574]
[1728530879038,8.5732,140.06,140.05,5.35506281]
[1728530879645,3.5732,140.06,140.05,5.35506281]
[1728530880544,13.4832,140.06,140.05,5.35506281]